Cogmind - Beta 16 @@@ ROGUE MODE // 2026.02.07 @ 10:14:34 Player: Imperator Result: Destroyed by G-34 Mercenary with Small Laser Performance ------------- Evolutions (1) 500 Regions Visited (2) 400 Robots Destroyed (17) 85 Value Destroyed (274) 274 Prototype IDs (0) 0 Alien Tech Used (0) 0 Bonus (0) 0 TOTAL SCORE: 1259 Bonus ------- None Cogmind --------- Core Integrity 0/400 Matter 246/300 Energy 300/300 System Corruption 2% Temperature Cool (7) Movement Core (500) Ox9 Location -9/Materials Parts ------- > --- POWER (1) -------- (None) > --- PROPULSION (4) --- (None) > --- UTILITY (2) ------ Large Storage Unit Large Battery > --- WEAPON (2) ------- Particle Gun Particle Gun > --- INVENTORY (15) --- Weight Redist. System Structural Scanner Targeting Computer Particle Charger ECM Suite ECM Suite Reflective Plating Heavy Particle Cannon Improved Light Cannon Mining Claw Peak State ------------ > --- POWER ------------ Ion Engine > --- PROPULSION ------- Light Treads Light Treads > --- UTILITY ---------- Large Storage Unit Particle Charger > --- WEAPON ----------- Heavy Particle Cannon Heavy Particle Cannon > --- INVENTORY -------- Light Ion Engine Aluminum Leg Aluminum Leg Compact Wheel Compact Wheel Large Battery Weight Redist. System Structural Scanner Targeting Computer Particle Charger ECM Suite ECM Suite Reflective Plating Improved Light Cannon Mining Claw [Rating: 15] Favorites ----------- Power Ion Engine Engine Ion Engine Propulsion Light Treads Treads Light Treads Leg Aluminum Leg Wheel Compact Wheel Utility Large Storage Unit Device Seismic Detector Storage Large Storage Unit Weapon Assault Rifle Energy Gun Particle Gun Energy Cannon Heavy Particle Cannon Ballistic Gun Assault Rifle Ballistic Cannon Improved Light Cannon Launcher Mini Grenade Launcher Slashing Weapon Mining Claw Build | -11 -10 -9 ------- Run | Yrd Mat Mat Slots Evolved 2 | . . 2 Power . | . . . Propulsion 2 | . . 2 Utility . | . . . Weapon . | . . . Parts Attached 26 | 7 8 11 Power 2 | 1 . 1 Engine 2 | 1 . 1 Core . | . . . Reactor . | . . . Propulsion 6 | 2 3 1 Treads 2 | . 2 . Leg 2 | 2 . . Wheel 2 | . 1 1 Hover . | . . . Flight . | . . . Utility 8 | 2 4 2 Device 5 | 1 3 1 Storage 3 | 1 1 1 Processor . | . . . Hackware . | . . . Protection . | . . . Artifact . | . . . Weapon 10 | 2 1 7 Energy Gun 3 | . . 3 Energy Cannon 2 | . . 2 Ballistic Gun 2 | 2 . . Ballistic Cannon 1 | . . 1 Launcher 1 | . 1 . Special Weapon . | . . . Impact Weapon . | . . . Slashing Weapon 1 | . . 1 Piercing Weapon . | . . . Special Melee Weapon . | . . . Unidentified Prototypes . | . . . Parts Lost 10 | . . 10 Power 2 | . . 2 Propulsion 6 | . . 6 Utility 1 | . . 1 Weapon 1 | . . 1 Highest Loss Streak 8 | . . 8 To Critical Strikes . | . . . Average Backups 11 | 5 10 13 Power . | . 1 . Propulsion 2 | 3 4 2 Utility 5 | . 3 6 Weapon 2 | . 2 3 Tool/Special . | . . . Unused Backups 11 | 2 1 8 Power . | . . . Propulsion 2 | 2 . . Utility 7 | . 1 6 Weapon 2 | . . 2 Tool/Special . | . . . Average Slot Usage (%) 74 | . 99 63 Engine 8 | . 14 6 Treads 13 | . 14 12 Leg 8 | . 13 6 Device 8 | . 13 5 Storage 15 | . 14 15 Energy Gun 2 | . . 3 Energy Cannon 3 | . . 4 Ballistic Gun 7 | . 20 1 Ballistic Cannon 1 | . . 2 Launcher 4 | . 7 3 Peak Build Rating 15 | 9 10 15 Average Rating 8 | 5 8 9 On Entrance 6 | . 9 10 Avg Prop Armor Cover (%) . | . . . Naked Turns . | . . . Heaviest Build 40 | 14 29 40 Greatest Support 46 | 20 46 46 Greatest Overweight (x) 9 | . 1 9 Average Overweight (x) . | . . . Largest Inventory Capacity 15 | 8 15 15 Average Capacity 13 | 7 14 15 Most Carried 15 | 8 15 15 Average Carried 11 | 5 11 13 Final Capacity 15 | 8 15 15 Final Carried 15 | 8 15 10 Class Distribution -------------------- 100% | Mutant Dominant Class ---------------- Mutant | -10/Materials Mutant | -9/Materials Resources | -11 -10 -9 ----------- Run | Yrd Mat Mat Matter Collected 594 | 338 21 235 Remotely . | . . . Salvage Created 552 | 178 37 337 Parts 29 | 12 3 14 Haulers Intercepted . | . . . Recyclers Shooed 1 | . . 1 Parts Field Recycled . | . . . Retrieved Matter . | . . . Parts Self-Destructed . | . . . Prevented . | . . . Parts Restored . | . . . Kills | -11 -10 -9 ------- Run | Yrd Mat Mat Combat Hostiles Destroyed 6 | . 1 5 Guns 2 | . . 2 Cannons 3 | . . 3 AOE 1 | . 1 . Classes Destroyed 7 | 3 1 3 Worker 3 | 2 . 1 Tunneler 4 | 4 . . Recycler 3 | 1 . 2 Watcher 1 | . . 1 Swarmer 2 | . . 2 Grunt 1 | . 1 . Sentry 3 | . . 3 Best Kill Streak 6 | 6 1 2 Combat Bots Only 1 | . 1 1 Max Kills in Single Turn 1 | 1 1 1 Gunslinging . | . . . Exploded 1 | . 1 . Melee . | . . . Uniques/NPCs Destroyed . | . . . Combat | -11 -10 -9 -------- Run | Yrd Mat Mat Hostile Shots Fired 198 | . 14 184 Missed 57 | . 4 53 Hits 141 | . 10 131 Melee 2 | . . 2 Projectile 139 | . 10 129 Critical Strikes 4 | . . 4 Damage Taken 1658 | . 157 1501 Core 416 | . 12 404 Absorbed by Shields . | . . . Core Remaining (%) 97 | 100 95 . Volleys Fired 62 | 17 1 44 Largest 2 | 2 2 2 Hottest 150 | 40 50 150 Shots Fired 97 | 34 2 61 Gun 57 | 34 1 22 Cannon 39 | . . 39 Launcher 1 | . 1 . Special . | . . . Kinetic 47 | 34 1 12 Thermal 49 | . . 49 Explosive 1 | . 1 . Electromagnetic . | . . . Robot Hit Streak 11 | 11 5 6 Robot Miss Streak 3 | 2 . 3 Penetration Max . | . . . Secondary Targets . | . . . Shots Hit Robots 60 | 22 2 36 Core Hits 22 | 9 1 12 Critical Kills . | . . . Critical Parts Destroyed . | . . . Critical Strikes 2 | . . 2 Burn 2 | . . 2 Melee Attacks 5 | . . 5 Impact . | . . . Slashing 5 | . . 5 Piercing . | . . . Sneak Attacks . | . . . Combat Hostiles . | . . . Follow-up Attacks . | . . . Damage Inflicted 1112 | 205 97 810 Guns 416 | 205 13 198 Cannons 588 | . . 588 Explosions 84 | . 84 . Melee 22 | . . 22 Ramming 2 | . . 2 Kinetic 404 | 205 13 186 Thermal 600 | . . 600 Explosive 84 | . 84 . Electromagnetic . | . . . Impact . | . . . Slashing 22 | . . 22 Piercing . | . . . Highest Corruption 2 | . . 2 Average Corruption 2 | . . 2 Corruption Purged . | . . . Corruption Blocked . | . . . Overload Shots . | . . . Overflow Damage 9 | . . 9 Projectiles 9 | . . 9 Explosions . | . . . Melee . | . . . Knockbacks 1 | . . 1 Impact . | . . . Kinetic 1 | . . 1 Secondary . | . . . Self-Inflicted Damage 46 | . 46 . Shots 1 | . 1 . Rammed . | . . . Targets Rammed 1 | . . 1 Kicked 1 | . . 1 Crushed . | . . . Highest Temperature 443 | . 2 443 Average Temperature 154 | . 2 155 Received Heat Transfer 429 | . 60 369 Effects 5 | . . 5 Shutdowns 2 | . . 2 Energy Bleed 1 | . . 1 Matter Decay 1 | . . 1 Damage (minor) 1 | . . 1 Siege Activations . | . . . Martial Activations . | . . . Shielding Activations . | . . . Robots Disrupted . | . . . Combat Hostiles . | . . . Robots Corrupted . | . . . Combat Hostiles . | . . . Parts Fried . | . . . Impact Corruptions . | . . . Robots Melted . | . . . Combat Hostiles . | . . . Parts Melted 1 | . . 1 Heat Transferred 1184 | . . 1184 Parts Sabotaged . | . . . Parts Stolen . | . . . Parts Stripped . | . . . Power Chain Reactions . | . . . Alert | -11 -10 -9 ------- Run | Yrd Mat Mat Maximum Alert Level . | . . . Low Security (%) 100 | 100 100 100 Level 1 . | . . . Level 2 . | . . . Level 3 . | . . . Level 4 . | . . . Level 5 . | . . . High Security . | . . . Max Security . | . . . Peak Influence 63 | 10 44 63 Initial 18 | . . 18 Average 12 | 1 . 19 Influence Increases 345 | 35 44 266 Destroy 0b10 Robot/C 120 | . 20 100 Destroy 0b10 Robot/NC 55 | 35 . 20 Destroy Leader 42 | . 10 32 Disable Machine 30 | . . 30 Destroy Structure 23 | . 14 9 Lose Combat Pursuer 75 | . . 75 Influence Decreases 345 | 35 . 310 Entered New Map 26 | . . 26 Time Decay 263 | 35 . 228 Lost Part 56 | . . 56 Squads Dispatched 2 | . 2 . Investigation 1 | . 1 . Extermination . | . . . Reinforcement 1 | . 1 . Assault . | . . . Garrison . | . . . Intercept . | . . . Searches Triggered . | . . . Construction Impeded . | . . . Haulers Reinforced . | . . . Active Scanning Responses . | . . . Cargo Convoy Interrupts . | . . . Stealth | -11 -10 -9 --------- Run | Yrd Mat Mat Distress Signals 3 | . . 3 Communications Jammed . | . . . Distress Signals . | . . . Times Spotted 22 | . 4 18 Peak Tracking Total 5 | . 3 5 Tactical Retreats 3 | . . 3 Traps | -11 -10 -9 ------- Run | Yrd Mat Mat Traps Triggered 2 | . 1 1 Indirectly . | . . . Trap Hack Attempts . | . . . Triggered . | . . . Disarmed . | . . . Reprogrammed . | . . . Reused . | . . . Traps Extracted . | . . . Installed . | . . . Triggered . | . . . Machines | -11 -10 -9 ---------- Run | Yrd Mat Mat Machines Disabled 2 | . . 2 Max in Single Turn 1 | . . 1 Machines Repaired . | . . . Machines Dismantled . | . . . Machines Sabotaged . | . . . Overloaded Fab Kills . | . . . Hacking | -11 -10 -9 --------- Run | Yrd Mat Mat Machines Accessed 2 | . 1 1 Terminals 1 | . 1 . Fabricators . | . . . Repair Stations . | . . . Recycling Units 1 | . . 1 Scanalyzers . | . . . Garrison Access . | . . . Total Hacks 2 | . 1 1 Successful 2 | . 1 1 Failed . | . . . Catastrophic . | . . . Database Lockouts . | . . . Manual . | . . . Terminals 1 | . 1 . Fabricators . | . . . Repair Stations . | . . . Recycling Units 1 | . . 1 Scanalyzers . | . . . Garrison Access . | . . . Terminal Hacks 1 | . 1 . Record 1 | . 1 . Fabricator Hacks . | . . . Repair Station Hacks . | . . . Recycling Unit Hacks 1 | . . 1 Report Inventory 1 | . . 1 Scanalyzer . | . . . Garrison Access Hacks . | . . . Unauthorized Hacks . | . . . Terminals . | . . . Fabricators . | . . . Repair Stations . | . . . Recycling Units . | . . . Scanalyzers . | . . . Garrison Access . | . . . Data Cores Recovered . | . . . Used . | . . . Hacking Detections . | . . . Full Trace Events . | . . . Feedback Events . | . . . Feedback Blocked . | . . . Robot Schematics Acquired . | . . . Robots Built . | . . . Authchips . | . . . Time . | . . . Total Robot Build Rating . | . . . Part Schematics Acquired . | . . . Parts Built . | . . . Authchips . | . . . Time . | . . . Total Part Build Rating . | . . . Part Studies Acquired . | . . . Parts Repaired . | . . . Time . | . . . Parts Recycled . | . . . Recycled Matter . | . . . Retrieved Matter . | . . . Retrieved Components . | . . . Parts Scanalyzed . | . . . Part Schematics Acquired . | . . . Parts Damaged . | . . . Bothacking | -11 -10 -9 ------------ Run | Yrd Mat Mat Used RIF Installer . | . . . Robots Hacked . | . . . Non-combat . | . . . Combat . | . . . Robot Hacks Applied . | . . . Relay Couplers Released . | . . . Fabnet Peak Effective % . | . . . Robots Rewired . | . . . Allies Hacked . | . . . Hacks Repelled . | . . . Allies | -11 -10 -9 -------- Run | Yrd Mat Mat Total Allies . | . . . Largest Group . | . . . Highest-Rated Group . | . . . Highest-Rated Ally . | . . . Total Orders . | . . . Ally Attacks . | . . . Total Damage . | . . . Kills . | . . . Allies Corrupted . | . . . Allies Melted . | . . . Intel | -11 -10 -9 ------- Run | Yrd Mat Mat Active Infowar (turns) 401 | 28 137 236 Terrain 59 | 28 31 . Structural 24 | . 24 . Seismic 318 | . 82 236 Robot Analysis Total . | . . . Derelict Logs Recovered . | . . . Drone Launches . | . . . Drone Recoveries . | . . . Exploration | -11 -10 -9 ------------- Run | Yrd Mat Mat Turns Passed 1377 | 206 327 844 Spaces Moved 675 | 117 179 379 Core 19 | 7 . 12 Treads 346 | . 101 245 Legs 300 | 110 78 112 Wheels 10 | . . 10 Hover . | . . . Flight . | . . . Fastest Speed 50 | 50 120 115 Average Speed 164 | 115 163 179 Slowest Speed 500 | 120 190 500 Overloaded Moves . | . . . Propulsion Burnouts . | . . . Robots Hopped . | . . . Potential Cave-ins . | . . . Cave-ins Triggered . | . . . Exploration Rate (%) 21 | 4 29 30 Regions Visited 2 Branch Regions . Pre-discovered Areas . | . . . Known Exits Taken . | . . . Unknown Exits Taken 2 | 1 1 . Scrap Searched . | . . . Spaces Dug . | . . . Terrain Destroyed 21 | . 12 9 Melee . | . . . Projectile 9 | . . 9 AOE 12 | . 12 . Terrain Rammed . | . . . Walls Destroyed . | . . . Machines Disabled . | . . . Actions | -11 -10 -9 --------- Run | Yrd Mat Mat Total 858 | 160 218 480 Wait 17 | . 8 9 Move 673 | 116 178 379 Hop . | . . . Pick Up 35 | 17 9 9 Fast Attach 3 | 1 . 2 Attach 31 | 6 9 16 Detach 15 | . 9 6 Swap 1 | . 1 . Drop 15 | 3 3 9 Fire 62 | 17 1 44 Melee 5 | . . 5 Ram . | . . . Kick 1 | . . 1 Crush . | . . . Escape Stasis . | . . . Rewire . | . . . Trap . | . . . Miscellaneous . | . . . Route ------- -11/Scrapyard -10/Materials -9/Materials History --------- Turn | Location | Event 3 | -11/Scrapyard | Discovered new exit (range 16) 207 | -11/Scrapyard | Entered Materials 318 | -10/Materials | Build established: Mutant 329 | -10/Materials | Discovered new exit (range 10) 534 | -10/Materials | Entered another Materials area 534 | -9/Materials | Evolved 2 slots: Propulsion x2 1039 | -9/Materials | Core integrity fell below 50% 1086 | -9/Materials | Lost 8 parts (2p4n1u1w) 1326 | -9/Materials | Core integrity fell below 20% 1378 | -9/Materials | Destroyed by G-34 Mercenary with Small Laser Last Messages --------------- Kicked R-06 Scavenger out of the way. Critical hit (Burn: +37). Y-45 Defender suffers critical hit (Burn). Y-45 Defender destroyed. K-01 Serf collects debris. R-06 Scavenger collects Heat Sink. K-01 Serf collects debris. R-06 Scavenger collects Lgt. Treads. K-01 Serf collects debris. R-06 Scavenger destroyed. K-01 Serf collects debris. Acquired 49 matter. K-01 Serf collects debris. K-01 Serf cleans the Terminal. G-34 Mercenary suffers critical hit (Burn). Aluminum Leg destroyed. K-01 Serf destroyed. Aluminum Leg destroyed. System corrupted by crushing effect (+2). Knocked back. Map ----- +----------------------------------------------------+ | % #??????????????????????????????????????????? | | """ ##?????????????????????????????????????????? | | """ #?????????????????????????????????????????? | | """ ##?????????????????????????????????????????? | | #??????????????????????????????????????????? | | "" #??????????????????????????????????????????? | | R #??????????????????????????????????????????? | | "" #??????????????????????????????????????????? | | #??????????????????????????????????????????? | | ###+####?????????????????????????????????????????? | | #?????????????????????????????????????????? | | % ###################???????????????????????? | | = +???????????????????????? | | %= #???????????????????????? | | " #???????????????????????? | | T +???????????????????????? | | " #???????????????????????? | | #???????????????????????? | | # #???????????????????????? | | #gg #???????????????????????? | | ##### ######??????????????????? | | #???# +??????????????????? | | """ #???# ####??????????????????? | | """"" #???# b #?????????????????????? | | """"" #???# #?????????????????????? | | " "" #???# @ #?????????????????????? | | #???# #?????????????????????? | | #???# #?????????????????????? | | ????# #?????????????????????? | | """ #???# #?????????????????????? | | """ " #???# #?????????????????????? | | """ #???# #?????????????????????? | | """ #???# #?????????????????????? | | #???# +?????????????????????? | | ?? #???# #?????????????????????? | | ??? #???# #?????????????????????? | | ??? #???### ###?????????????????????? | | ###+####???# #?????# ????????????????????????? | | ???????????# #?????? ????????????????????????? | | ???????????# #?????? ????????????????????????? | | ???????????# #?????? ????????????????????????? | | ???????????# #???????????????????????????????? | | ???????????# #???????????????????????????????? | | ???????????# #???????????????????????????????? | | ???????????# #???????????????????????????????? | | #####??????# #???????????????????????????????? | | #??????# ##??????????????????????????????? | | "" #??????# #??????????????????????????????? | | "" #??????# #??????????????????????????????? | | "" #?????## #??????????????????????????????? | +----------------------------------------------------+ Best States ------------- Heat Dissipation 28 Energy Generation 10 Energy Capacity 300 Matter Stores 300 Matter Capacity 300 Sight Range 16 Terrain Scan Range 16 Terrain Scan Density 10 Additional Mass Support 6 Evasion (%) 55 Recoil Reduction 2 Particle Charging 15 Item Schematics ----------------- None Robot Schematics ------------------ None Fabricated ------------ Nothing Repaired ---------- Nothing Studied --------- None Alien Tech Used ----------------- None Achievements -------------- Let's See Who's Tougher Challenges ------------ None Game ------ Seed AssembledNullClaymores Manual? 0 Play Time 00:21:38 Cumulative 4.3 hours Start 2026.02.07 @ 09:53:38 End 2026.02.07 @ 10:14:34 Sessions 1 Manual Loads 0 Difficulty Rogue Special Mode None Game No. 7 Rogue 7 Adventurer 0 Explorer 0 Win Type - Total 0 Types 0/0/0/0/0/0/0/0/0/0 Lore% 0 Gallery% 10 Achievement% 6 Wizard Run 0 Options --------- Layout 0 ASCII 0 Keyboard 0 Movement Mouse Keybinds 0 Fullscreen 1 Font 24/Smallcaps Map View 113x50 Zoom Use 0% Tactical HUD 0 Map Filters NONE Filters NONE Steam 1 RUN: fa2096ca-f32d-4fa5-8935-43b65cdba6e9